[Event "South Island Championships 2023"]
[Site "Oamaru, New Zealand"]
[Date "2023.09.27"]
[Round "1.11"]
[White "Holdo, Karl"]
[Black "Mayrhuber, Nikola"]
[Result "0-1"]
[TimeControl "90 + 30"]
[WhiteFideId "4304586"]
[BlackFideId "1637819"]
[WhiteElo "1551"]
[BlackElo "2059"]

1. d4 {[%clk 01:30:58]} {[%emt 00:00:01]} Nf6 {[%clk 01:30:55]} {[%emt
00:00:06]} 2. Nf3 {[%clk 01:31:17]} {[%emt 00:00:10]} e6 {[%clk 01:31:18]}
{[%emt 00:00:07]} 3. c4 {[%clk 01:31:22]} {[%emt 00:00:25]} Bb4+ {[%clk
01:31:42]} {[%emt 00:00:06]} 4. Bd2 {[%clk 01:30:44]} {[%emt 00:01:07]} Qe7
{[%clk 01:30:57]} {[%emt 00:01:16]} 5. Nc3 {[%clk 01:28:48]} {[%emt 00:02:25]}
Bxc3 {[%clk 01:26:27]} {[%emt 00:05:01]} 6. Bxc3 {[%clk 01:28:51]} {[%emt
00:00:26]} Ne4 {[%clk 01:26:53]} {[%emt 00:00:05]} 7. Qc2 {[%clk 01:27:33]}
{[%emt 00:01:47]} Nxc3 {[%clk 01:26:55]} {[%emt 00:00:28]} 8. Qxc3 {[%clk
01:27:51]} {[%emt 00:00:12]} d6 {[%clk 01:25:39]} {[%emt 00:01:46]} 9. e4
{[%clk 01:21:11]} {[%emt 00:07:11]} Nd7 {[%clk 01:20:31]} {[%emt 00:05:39]} 10.
Bd3 {[%clk 01:14:42]} {[%emt 00:06:57]} e5 {[%clk 01:20:01]} {[%emt 00:01:01]}
11. O-O {[%clk 01:12:56]} {[%emt 00:02:15]} O-O {[%clk 01:18:43]} {[%emt
00:01:49]} 12. Bc2 {[%clk 01:10:19]} {[%emt 00:03:06]} Re8 {[%clk 01:15:21]}
{[%emt 00:03:52]} 13. dxe5 {[%clk 01:08:25]} {[%emt 00:02:24]} dxe5 {[%clk
01:14:02]} {[%emt 00:01:50]} 14. Ba4 {[%clk 01:01:50]} {[%emt 00:07:04]} c6
{[%clk 01:13:42]} {[%emt 00:00:51]} 15. b4 {[%clk 00:56:04]} {[%emt 00:06:15]}
Nf6 {[%clk 01:07:12]} {[%emt 00:07:01]} 16. Rfe1 {[%clk 00:53:49]} {[%emt
00:02:44]} Bg4 {[%clk 01:05:55]} {[%emt 00:01:48]} 17. c5 {[%clk 00:53:10]}
{[%emt 00:01:08]} Bxf3 {[%clk 00:55:38]} {[%emt 00:10:47]} 18. Qxf3 {[%clk
00:53:20]} {[%emt 00:00:20]} a5 {[%clk 00:54:28]} {[%emt 00:01:41]} 19. a3
{[%clk 00:52:37]} {[%emt 00:01:12]} Red8 {[%clk 00:54:31]} {[%emt 00:00:28]} 20.
Qc3 {[%clk 00:47:56]} {[%emt 00:05:11]} Rd4 {[%clk 00:51:18]} {[%emt 00:03:43]}
21. Bc2 {[%clk 00:44:27]} {[%emt 00:03:58]} g6 {[%clk 00:46:42]} {[%emt
00:05:07]} 22. Rad1 {[%clk 00:40:01]} {[%emt 00:04:55]} Rad8 {[%clk 00:41:45]}
{[%emt 00:05:27]} 23. Rxd4 {[%clk 00:38:34]} {[%emt 00:01:56]} Rxd4 {[%clk
00:38:24]} {[%emt 00:03:51]} 24. f3 {[%clk 00:23:48]} {[%emt 00:15:15]} axb4
{[%clk 00:35:10]} {[%emt 00:03:45]} 25. axb4 {[%clk 00:24:00]} {[%emt
00:00:18]} Qd8 {[%clk 00:27:27]} {[%emt 00:08:13]} 26. Re2 {[%clk 00:15:55]}
{[%emt 00:08:33]} Ne8 {[%clk 00:25:31]} {[%emt 00:02:28]} 27. Bb3 {[%clk
00:12:27]} {[%emt 00:03:58]} Nc7 {[%clk 00:23:42]} {[%emt 00:02:19]} 28. Qe1
{[%clk 00:06:37]} {[%emt 00:06:18]} Na6 {[%clk 00:21:47]} {[%emt 00:02:28]} 29.
Qg3 {[%clk 00:05:21]} {[%emt 00:01:45]} Qe7 {[%clk 00:21:05]} {[%emt 00:01:13]}
30. f4 {[%clk 00:01:30]} {[%emt 00:12:56]} Rxb4 {[%clk 00:18:28]} 31. fxe5
{[%clk 00:00:48]} Nxc5 {[%clk 00:18:46]} 32. Bc2 {[%clk 00:00:38]} Ne6 {[%clk
00:19:04]} 33. Rd2 {[%clk 00:00:38]} Qc5+ {[%clk 00:18:33]} 34. Qf2 {[%clk
00:00:38]} Qxf2+ {[%clk 00:13:48]} {[%emt 00:04:03]} 35. Kxf2 {[%clk 00:00:54]}
{[%emt 00:00:14]} Kf8 {[%clk 00:13:48]} {[%emt 00:00:30]} 36. Ke3 {[%clk
00:01:06]} {[%emt 00:00:18]} Ke7 {[%clk 00:14:09]} {[%emt 00:00:10]} 37. g3
{[%clk 00:01:16]} {[%emt 00:00:19]} Rb5 {[%clk 00:13:25]} {[%emt 00:01:15]} 38.
Bd1 {[%clk 00:00:44]} {[%emt 00:01:01]} Rxe5 {[%clk 00:13:25]} {[%emt
00:00:30]} 0-1

[Event "South Island Championships 2023"]
[Site "Oamaru, New Zealand"]
[Date "2023.09.27"]
[Round "1.1"]
[White "Anikonov, Artem"]
[Black "Lukey, Stephen G"]
[Result "0-1"]
[TimeControl "90 + 30"]
[WhiteFideId "34339876"]
[BlackFideId "4300386"]
[WhiteElo "1721"]
[BlackElo "2307"]

1. e4 {[%clk 01:30:57]} {[%emt 00:00:03]} e6 {[%clk 01:30:55]} {[%emt
00:00:06]} 2. d4 {[%clk 01:31:23]} {[%emt 00:00:03]} d5 {[%clk 01:31:19]}
{[%emt 00:00:07]} 3. exd5 {[%clk 01:31:46]} {[%emt 00:00:07]} exd5 {[%clk
01:31:44]} {[%emt 00:00:04]} 4. Nc3 {[%clk 01:32:04]} {[%emt 00:00:13]} Nf6
{[%clk 01:30:12]} {[%emt 00:02:01]} 5. Nf3 {[%clk 01:31:18]} {[%emt 00:01:15]}
Bd6 {[%clk 01:22:34]} {[%emt 00:08:09]} 6. Bd3 {[%clk 01:30:23]} {[%emt
00:01:26]} O-O {[%clk 01:22:37]} {[%emt 00:00:27]} 7. O-O {[%clk 01:30:30]}
{[%emt 00:00:23]} Bg4 {[%clk 01:21:58]} {[%emt 00:01:08]} 8. Bg5 {[%clk
01:28:58]} {[%emt 00:02:02]} c6 {[%clk 01:22:14]} {[%emt 00:00:14]} 9. h3
{[%clk 01:28:22]} {[%emt 00:01:06]} Bh5 {[%clk 01:21:35]} {[%emt 00:01:09]} 10.
Be2 {[%clk 01:27:12]} {[%emt 00:01:40]} Nbd7 {[%clk 01:21:28]} {[%emt
00:00:37]} 11. Ne5 {[%clk 01:26:21]} {[%emt 00:01:21]} Bxe2 {[%clk 01:21:46]}
{[%emt 00:00:12]} 12. Qxe2 {[%clk 01:26:42]} {[%emt 00:00:09]} Re8 {[%clk
01:21:00]} {[%emt 00:01:16]} 13. f4 {[%clk 01:26:51]} {[%emt 00:00:20]} Qb6
{[%clk 01:20:21]} {[%emt 00:01:09]} 14. Qd3 {[%clk 01:25:54]} {[%emt 00:01:28]}
Nxe5 {[%clk 01:09:53]} {[%emt 00:10:58]} 15. Na4 {[%clk 01:22:30]} {[%emt
00:03:54]} Nxd3 {[%clk 01:09:18]} {[%emt 00:01:05]} 16. Nxb6 {[%clk 01:22:54]}
{[%emt 00:00:06]} axb6 {[%clk 01:09:41]} {[%emt 00:00:07]} 17. cxd3 {[%clk
01:23:19]} {[%emt 00:00:05]} Re2 {[%clk 01:09:59]} {[%emt 00:00:12]} 18. Rf2
{[%clk 01:23:39]} {[%emt 00:00:10]} Rae8 {[%clk 01:10:01]} {[%emt 00:00:28]} 19.
Kf1 {[%clk 01:23:53]} {[%emt 00:00:16]} Rxf2+ {[%clk 01:10:22]} {[%emt
00:00:09]} 20. Kxf2 {[%clk 01:24:17]} {[%emt 00:00:06]} c5 {[%clk 01:10:28]}
{[%emt 00:00:24]} 21. dxc5 {[%clk 01:24:22]} {[%emt 00:00:25]} Bxc5+ {[%clk
01:10:54]} {[%emt 00:00:04]} 22. Kf3 {[%clk 01:24:44]} {[%emt 00:00:07]} Re3+
{[%clk 01:11:18]} {[%emt 00:00:07]} 23. Kf2 {[%clk 01:25:01]} {[%emt 00:00:13]}
Rxd3+ {[%clk 01:11:34]} {[%emt 00:00:14]} 24. Ke2 {[%clk 01:25:23]} {[%emt
00:00:09]} Re3+ {[%clk 01:11:50]} {[%emt 00:00:14]} 25. Kd2 {[%clk 01:25:46]}
{[%emt 00:00:07]} Ne4+ {[%clk 01:12:14]} {[%emt 00:00:06]} 26. Kc2 {[%clk
01:26:04]} {[%emt 00:00:11]} d4 {[%clk 01:11:39]} {[%emt 00:01:05]} 27. Rd1
{[%clk 01:26:22]} {[%emt 00:00:12]} f5 {[%clk 01:10:06]} {[%emt 00:02:03]} 28.
a3 {[%clk 01:26:34]} {[%emt 00:00:19]} Re2+ {[%clk 01:09:59]} {[%emt 00:00:35]}
29. Kd3 {[%clk 01:26:43]} {[%emt 00:00:21]} Rxb2 {[%clk 01:10:16]} {[%emt
00:00:14]} 30. Re1 {[%clk 01:26:48]} {[%emt 00:00:25]} b5 {[%clk 01:10:08]}
{[%emt 00:00:38]} 31. Rxe4 {[%clk 01:26:42]} {[%emt 00:00:36]} fxe4+ {[%clk
01:10:33]} {[%emt 00:00:06]} 0-1

[Event "South Island Championships 2023"]
[Site "Oamaru, New Zealand"]
[Date "2023.09.27"]
[Round "1.3"]
[White "Mischke, Andreas"]
[Black "Carpinter, Anthony L"]
[Result "1/2-1/2"]
[TimeControl "90 + 30"]
[WhiteFideId "34649840"]
[BlackFideId "4300238"]
[WhiteElo "1680"]
[BlackElo "2217"]

1. e4 {[%clk 01:30:57]} {[%emt 00:00:03]} e6 {[%clk 01:30:45]} {[%emt
00:00:16]} 2. d4 {[%clk 01:31:19]} {[%emt 00:00:08]} d5 {[%clk 01:31:08]}
{[%emt 00:00:06]} 3. Bd3 {[%clk 01:31:33]} {[%emt 00:00:17]} dxe4 {[%clk
01:30:41]} {[%emt 00:00:57]} 4. Bxe4 {[%clk 01:31:42]} {[%emt 00:00:21]} Nf6
{[%clk 01:30:33]} {[%emt 00:00:38]} 5. Bf3 {[%clk 01:32:07]} {[%emt 00:00:05]}
Nbd7 {[%clk 01:30:24]} {[%emt 00:00:39]} 6. Ne2 {[%clk 01:30:09]} {[%emt
00:02:27]} e5 {[%clk 01:28:19]} {[%emt 00:02:36]} 7. Ng3 {[%clk 01:25:45]}
{[%emt 00:04:53]} Bd6 {[%clk 01:24:16]} {[%emt 00:04:33]} 8. O-O {[%clk
01:22:35]} {[%emt 00:03:41]} O-O {[%clk 01:23:33]} {[%emt 00:01:12]} 9. Bg5
{[%clk 01:20:00]} {[%emt 00:03:06]} h6 {[%clk 01:15:31]} {[%emt 00:08:32]} 10.
Be3 {[%clk 01:18:07]} {[%emt 00:02:22]} exd4 {[%clk 01:09:58]} {[%emt
00:06:03]} 11. Bxd4 {[%clk 01:16:29]} {[%emt 00:02:09]} Ne5 {[%clk 01:07:24]}
{[%emt 00:03:04]} 12. c3 {[%clk 01:10:27]} {[%emt 00:06:32]} c5 {[%clk
00:50:15]} {[%emt 00:17:38]} 13. Bxe5 {[%clk 01:00:23]} {[%emt 00:10:35]} Bxe5
{[%clk 00:50:33]} {[%emt 00:00:12]} 14. Qc2 {[%clk 00:59:38]} {[%emt 00:01:15]}
Qc7 {[%clk 00:46:37]} {[%emt 00:04:26]} 15. Nd2 {[%clk 00:56:39]} {[%emt
00:03:28]} Be6 {[%clk 00:43:25]} {[%emt 00:03:42]} 16. Rfe1 {[%clk 00:53:33]}
{[%emt 00:03:37]} Rab8 {[%clk 00:41:33]} {[%emt 00:02:22]} 17. Nde4 {[%clk
00:49:18]} {[%emt 00:04:45]} Nd7 {[%clk 00:34:02]} {[%emt 00:08:00]} 18. Nf1
{[%clk 00:39:23]} {[%emt 00:10:26]} Rfe8 {[%clk 00:29:40]} {[%emt 00:04:52]} 19.
Rad1 {[%clk 00:31:49]} {[%emt 00:08:04]} Rbd8 {[%clk 00:26:14]} {[%emt
00:03:55]} 20. Ned2 {[%clk 00:27:42]} {[%emt 00:04:37]} c4 {[%clk 00:25:17]}
{[%emt 00:01:27]} 21. g3 {[%clk 00:23:42]} {[%emt 00:04:31]} Nc5 {[%clk
00:25:05]} {[%emt 00:00:42]} 22. Re3 {[%clk 00:19:50]} {[%emt 00:04:22]} Bf6
{[%clk 00:24:16]} {[%emt 00:01:19]} 23. Ne4 {[%clk 00:18:24]} {[%emt 00:01:56]}
Nxe4 {[%clk 00:24:16]} {[%emt 00:00:30]} 24. Bxe4 {[%clk 00:17:10]} {[%emt
00:01:43]} Rxd1 {[%clk 00:21:26]} {[%emt 00:03:20]} 25. Qxd1 {[%clk 00:17:38]}
{[%emt 00:00:03]} Rd8 {[%clk 00:21:11]} {[%emt 00:00:45]} 26. Qc2 {[%clk
00:15:41]} {[%emt 00:02:27]} Qc8 {[%clk 00:20:47]} {[%emt 00:00:53]} 27. Re2
{[%clk 00:14:13]} {[%emt 00:01:59]} b5 {[%clk 00:20:40]} {[%emt 00:00:37]} 28.
Ne3 {[%clk 00:13:41]} {[%emt 00:01:02]} Qd7 {[%clk 00:20:44]} {[%emt 00:00:25]}
29. Bf5 {[%clk 00:11:52]} {[%emt 00:02:19]} a6 {[%clk 00:16:31]} {[%emt
00:04:44]} 30. Bxe6 {[%clk 00:09:49]} {[%emt 00:02:32]} Qxe6 {[%clk 00:16:15]}
{[%emt 00:00:46]} 31. Rd2 {[%clk 00:09:20]} {[%emt 00:00:59]} Rxd2 {[%clk
00:11:45]} {[%emt 00:10:35]} 32. Qxd2 {[%clk 00:09:48]} Kf8 {[%clk 00:11:27]}
33. Qd5 {[%clk 00:07:56]} Qc8 {[%clk 00:06:35]} {[%emt 00:03:00]} 34. Nf5
{[%clk 00:06:54]} {[%emt 00:01:30]} Qd8 {[%clk 00:05:59]} {[%emt 00:01:07]} 35.
Nd6 {[%clk 00:03:19]} {[%emt 00:04:06]} Qd7 {[%clk 00:05:48]} {[%emt 00:00:40]}
36. Qa8+ {[%clk 00:02:57]} {[%emt 00:00:52]} Qd8 {[%clk 00:03:39]} {[%emt
00:02:39]} 37. Qd5 {[%clk 00:03:18]} {[%emt 00:00:09]} 1/2-1/2

[Event "South Island Championships 2023"]
[Site "Oamaru, New Zealand"]
[Date "2023.09.27"]
[Round "1.9"]
[White "Barry, Jacob"]
[Black "Paulsen, Jens"]
[Result "0-1"]
[TimeControl "90 + 30"]
[WhiteFideId "4304462"]
[BlackFideId "4320476"]
[WhiteElo "1565"]
[BlackElo "2080"]

1. Nf3 {[%clk 01:30:53]} {[%emt 00:00:05]} c5 {[%clk 01:30:55]} {[%emt
00:00:06]} 2. e4 {[%clk 01:31:07]} {[%emt 00:00:16]} Nc6 {[%clk 01:31:15]}
{[%emt 00:00:10]} 3. d4 {[%clk 01:31:09]} {[%emt 00:00:28]} cxd4 {[%clk
01:31:44]} {[%emt 00:00:01]} 4. Nxd4 {[%clk 01:31:32]} {[%emt 00:00:07]} Nf6
{[%clk 01:32:11]} {[%emt 00:00:03]} 5. Nxc6 {[%clk 01:31:39]} {[%emt 00:00:22]}
bxc6 {[%clk 01:32:33]} {[%emt 00:00:09]} 6. Nc3 {[%clk 01:32:02]} {[%emt
00:00:07]} e5 {[%clk 01:32:42]} {[%emt 00:00:21]} 7. Bg5 {[%clk 01:31:36]}
{[%emt 00:00:55]} h6 {[%clk 01:32:45]} {[%emt 00:00:27]} 8. Bh4 {[%clk
01:31:39]} {[%emt 00:00:27]} Be7 {[%clk 01:31:19]} {[%emt 00:01:57]} 9. Bc4
{[%clk 01:31:02]} {[%emt 00:01:05]} O-O {[%clk 01:31:36]} {[%emt 00:00:14]} 10.
Bxf6 {[%clk 01:29:56]} {[%emt 00:01:36]} Bxf6 {[%clk 01:31:54]} {[%emt
00:00:12]} 11. O-O {[%clk 01:30:00]} {[%emt 00:00:27]} Qc7 {[%clk 01:31:11]}
{[%emt 00:01:13]} 12. Qd3 {[%clk 01:28:29]} {[%emt 00:01:59]} Be7 {[%clk
01:24:08]} {[%emt 00:07:34]} 13. a3 {[%clk 01:28:15]} {[%emt 00:00:45]} a5
{[%clk 01:22:18]} {[%emt 00:02:20]} 14. Rfe1 {[%clk 01:24:50]} {[%emt
00:03:55]} Rb8 {[%clk 01:20:52]} {[%emt 00:01:56]} 15. Bb3 {[%clk 01:24:49]}
{[%emt 00:00:30]} Kh8 {[%clk 01:13:37]} {[%emt 00:07:45]} 16. Rad1 {[%clk
01:23:47]} {[%emt 00:01:32]} Bc5 {[%clk 00:59:31]} {[%emt 00:14:36]} 17. Qc4
{[%clk 01:19:00]} {[%emt 00:05:17]} Qa7 {[%clk 00:57:41]} {[%emt 00:02:20]} 18.
Rd2 {[%clk 01:18:48]} {[%emt 00:00:41]} Ba6 {[%clk 00:57:30]} {[%emt 00:00:42]}
19. Qa4 {[%clk 01:18:02]} {[%emt 00:01:14]} Bb5 {[%clk 00:57:14]} {[%emt
00:00:47]} 0-1

[Event "South Island Championships 2023"]
[Site "Oamaru, New Zealand"]
[Date "2023.09.27"]
[Round "1.4"]
[White "Stark, John"]
[Black "McConnell, Jack"]
[Result "1-0"]
[TimeControl "90 + 30"]
[WhiteFideId "4300963"]
[BlackFideId "4321871"]
[WhiteElo "2204"]
[BlackElo "1640"]

1. c4 {[%clk 01:30:59]} {[%emt 00:00:01]} Nf6 {[%clk 01:30:50]} {[%emt
00:00:10]} 2. Nc3 {[%clk 01:31:24]} {[%emt 00:00:05]} c5 {[%clk 01:31:12]}
{[%emt 00:00:08]} 3. g3 {[%clk 01:31:51]} {[%emt 00:00:03]} e6 {[%clk
01:31:29]} {[%emt 00:00:12]} 4. Bg2 {[%clk 01:32:15]} {[%emt 00:00:06]} d5
{[%clk 01:31:53]} {[%emt 00:00:06]} 5. cxd5 {[%clk 01:31:06]} {[%emt 00:01:40]}
exd5 {[%clk 01:32:15]} {[%emt 00:00:08]} 6. Qb3 {[%clk 01:30:08]} {[%emt
00:01:28]} Be6 {[%clk 01:23:44]} {[%emt 00:09:01]} 7. Qxb7 {[%clk 01:27:54]}
{[%emt 00:02:44]} Nbd7 {[%clk 01:18:30]} {[%emt 00:05:43]} 8. Nb5 {[%clk
01:23:03]} {[%emt 00:05:22]} Rb8 {[%clk 01:11:46]} {[%emt 00:07:14]} 9. Nc7+
{[%emt 00:01:58]} Ke7 {[%clk 01:12:03]} {[%emt 00:00:10]} 10. Nxe6 {[%clk
01:21:42]} {[%emt 00:00:26]} fxe6 {[%clk 01:12:25]} {[%emt 00:00:07]} 11. Qa6
{[%clk 01:19:47]} {[%emt 00:02:25]} Kf7 {[%clk 01:10:48]} {[%emt 00:02:07]} 12.
Nf3 {[%clk 01:18:35]} {[%emt 00:01:42]} h6 {[%clk 01:06:01]} {[%emt 00:05:18]}
13. Bh3 {[%clk 01:18:04]} {[%emt 00:01:00]} Rb6 {[%clk 01:02:05]} {[%emt
00:04:26]} 14. Qxa7 {[%clk 01:17:58]} {[%emt 00:00:34]} Bd6 {[%clk 01:02:14]}
{[%emt 00:00:23]} 15. Qa4 {[%clk 01:17:22]} {[%emt 00:01:07]} g5 {[%clk
01:00:39]} {[%emt 00:02:04]} 16. Bg2 {[%clk 01:16:54]} {[%emt 00:00:57]} e5
{[%clk 00:55:18]} {[%emt 00:05:53]} 17. O-O {[%clk 01:16:56]} {[%emt 00:00:28]}
e4 {[%clk 00:54:55]} {[%emt 00:00:53]} 18. Ne1 {[%clk 01:17:19]} {[%emt
00:00:06]} h5 {[%clk 00:51:50]} {[%emt 00:03:35]} 19. d3 {[%clk 01:16:06]}
{[%emt 00:01:43]} g4 {[%clk 00:43:13]} {[%emt 00:09:07]} 20. dxe4 {[%clk
01:15:38]} {[%emt 00:00:59]} dxe4 {[%clk 00:41:31]} {[%emt 00:02:12]} 21. Bg5
{[%clk 01:10:00]} {[%emt 00:06:06]} h4 {[%clk 00:40:41]} {[%emt 00:01:22]} 22.
Rd1 {[%clk 01:05:52]} {[%emt 00:04:38]} hxg3 {[%clk 00:38:01]} {[%emt
00:03:10]} 23. fxg3 {[%clk 01:05:59]} {[%emt 00:00:22]} Ke6 {[%clk 00:31:13]}
{[%emt 00:07:18]} 24. Qc4+ {[%clk 01:05:58]} {[%emt 00:00:32]} Ke7 {[%clk
00:30:57]} {[%emt 00:00:45]} 25. Qxe4+ {[%clk 01:06:13]} {[%emt 00:00:15]} Kf7
{[%clk 00:30:42]} {[%emt 00:00:45]} 26. Qxg4 {[%clk 01:05:22]} {[%emt
00:01:21]} Be5 {[%clk 00:28:47]} {[%emt 00:02:27]} 27. Bd5+ {[%clk 01:05:04]}
{[%emt 00:00:48]} Ke8 {[%clk 00:28:25]} {[%emt 00:00:51]} 28. Bxf6 {[%clk
01:02:59]} {[%emt 00:02:34]} Bxf6 {[%clk 00:28:38]} {[%emt 00:00:17]} 29. Qg6+
{[%clk 01:02:47]} {[%emt 00:00:42]} Ke7 {[%clk 00:28:16]} 30. Qf7+ {[%clk
01:02:47]} Kd6 {[%clk 00:28:16]} 1-0

[Event "South Island Championships 2023"]
[Site "Oamaru, New Zealand"]
[Date "2023.09.27"]
[Round "1.8"]
[White "Lee, Edward S"]
[Black "Clarkson, Robert D"]
[Result "1-0"]
[TimeControl "90 + 30"]
[WhiteFideId "4303229"]
[BlackFideId "4302893"]
[WhiteElo "2088"]
[BlackElo "1568"]

1. b3 {[%clk 01:30:56]} {[%emt 00:00:03]} Nf6 {[%clk 01:30:45]} {[%emt
00:00:16]} 2. Bb2 {[%clk 01:30:49]} {[%emt 00:00:35]} d6 {[%clk 01:30:22]}
{[%emt 00:00:54]} 3. f4 {[%clk 01:30:50]} {[%emt 00:00:28]} Nc6 {[%clk
01:27:17]} {[%emt 00:03:36]} 4. e3 {[%clk 01:29:57]} {[%emt 00:01:23]} a6
{[%clk 01:25:04]} {[%emt 00:02:44]} 5. Nf3 {[%clk 01:29:44]} {[%emt 00:00:42]}
Bf5 {[%clk 01:21:28]} {[%emt 00:04:06]} 6. Be2 {[%clk 01:28:52]} {[%emt
00:01:21]} e5 {[%clk 01:15:50]} {[%emt 00:06:08]} 7. fxe5 {[%clk 01:28:14]}
{[%emt 00:01:08]} dxe5 {[%clk 01:15:55]} {[%emt 00:00:26]} 8. Nxe5 {[%clk
01:28:03]} {[%emt 00:00:41]} Nxe5 {[%clk 01:15:43]} {[%emt 00:00:42]} 9. Bxe5
{[%clk 01:28:07]} {[%emt 00:00:26]} Qd5 {[%clk 01:12:20]} {[%emt 00:03:54]} 10.
Bxf6 {[%clk 01:28:10]} {[%emt 00:00:26]} gxf6 {[%clk 01:11:32]} {[%emt
00:01:18]} 11. Bf3 {[%clk 01:26:15]} {[%emt 00:02:24]} Qb5 {[%clk 01:06:48]}
{[%emt 00:05:14]} 12. a4 {[%clk 01:19:41]} {[%emt 00:07:05]} Qe5 {[%clk
00:54:21]} {[%emt 00:12:57]} 13. Bxb7 {[%clk 01:16:50]} {[%emt 00:03:20]} Qxa1
{[%clk 00:50:12]} {[%emt 00:04:41]} 14. Bxa8 {[%clk 01:17:08]} {[%emt
00:00:12]} Qe5 {[%clk 00:46:46]} {[%emt 00:03:56]} 15. Bc6+ {[%clk 01:15:43]}
{[%emt 00:01:54]} Kd8 {[%clk 00:47:09]} {[%emt 00:00:07]} 16. Nc3 {[%clk
01:11:29]} {[%emt 00:04:44]} Rg8 {[%clk 00:47:10]} {[%emt 00:00:30]} 17. Qe2
{[%clk 01:10:56]} {[%emt 00:01:03]} Qa5 {[%clk 00:38:36]} {[%emt 00:09:03]} 18.
Qc4 {[%clk 01:05:37]} {[%emt 00:05:49]} Be6 {[%clk 00:36:57]} {[%emt 00:02:09]}
19. Qd4+ {[%clk 01:01:56]} {[%emt 00:04:11]} Bd6 {[%clk 00:35:11]} {[%emt
00:02:16]} 20. Ne4 {[%clk 01:01:53]} {[%emt 00:00:33]} Rg4 {[%clk 00:34:46]}
{[%emt 00:00:56]} 21. Qxf6+ {[%clk 01:01:12]} {[%emt 00:01:10]} Be7 {[%clk
00:33:20]} {[%emt 00:01:56]} 22. Qh8+ {[%clk 01:01:24]} {[%emt 00:00:17]} 1-0

[Event "South Island Championships 2023"]
[Site "Oamaru, New Zealand"]
[Date "2023.09.27"]
[Round "1.7"]
[White "Loos, Rick"]
[Black "Johnson, Quentin J F"]
[Result "0-1"]
[TimeControl "90 + 30"]
[WhiteFideId "0"]
[BlackFideId "4301480"]
[WhiteElo "1602"]
[BlackElo "2089"]

1. e4 {[%clk 01:30:55]} {[%emt 00:00:03]} c5 {[%clk 01:30:45]} {[%emt
00:00:17]} 2. Nf3 {[%clk 01:31:20]} {[%emt 00:00:04]} e6 {[%clk 01:31:09]}
{[%emt 00:00:06]} 3. d4 {[%clk 01:31:48]} {[%emt 00:00:02]} cxd4 {[%clk
01:31:33]} {[%emt 00:00:05]} 4. Nxd4 {[%clk 01:32:15]} {[%emt 00:00:04]} Nc6
{[%clk 01:31:58]} {[%emt 00:00:06]} 5. Nb5 {[%clk 01:31:56]} {[%emt 00:00:48]}
d6 {[%clk 01:32:14]} {[%emt 00:00:14]} 6. N1c3 {[%clk 01:32:20]} {[%emt
00:00:06]} a6 {[%clk 01:32:37]} {[%emt 00:00:08]} 7. Na3 {[%clk 01:32:44]}
{[%emt 00:00:05]} b5 {[%clk 01:32:52]} {[%emt 00:00:15]} 8. Ne2 {[%clk
01:31:28]} {[%emt 00:01:47]} Nf6 {[%clk 01:33:06]} {[%emt 00:00:16]} 9. Ng3
{[%clk 01:31:29]} {[%emt 00:00:28]} Be7 {[%clk 01:32:26]} {[%emt 00:01:10]} 10.
c3 {[%clk 01:30:47]} {[%emt 00:01:12]} Bb7 {[%clk 01:32:10]} {[%emt 00:00:46]}
11. f3 {[%clk 01:30:40]} {[%emt 00:00:37]} O-O {[%clk 01:32:25]} {[%emt
00:00:15]} 12. Be3 {[%clk 01:30:45]} {[%emt 00:00:25]} Rc8 {[%clk 01:32:13]}
{[%emt 00:00:42]} 13. Nc2 {[%clk 01:30:08]} {[%emt 00:01:07]} d5 {[%clk
01:29:50]} {[%emt 00:02:54]} 14. exd5 {[%clk 01:30:10]} {[%emt 00:00:28]} Nxd5
{[%clk 01:30:12]} {[%emt 00:00:07]} 15. Bf2 {[%clk 01:30:18]} {[%emt 00:00:21]}
Qc7 {[%clk 01:25:18]} {[%emt 00:05:24]} 16. Ne4 {[%clk 01:27:25]} {[%emt
00:03:24]} Rfd8 {[%clk 01:25:33]} {[%emt 00:00:15]} 17. Nd4 {[%clk 01:22:02]}
{[%emt 00:05:53]} Nxd4 {[%clk 01:19:22]} {[%emt 00:06:41]} 18. Bg3 {[%clk
01:13:21]} {[%emt 00:09:11]} Qa5 {[%clk 01:15:01]} {[%emt 00:04:52]} 19. Qxd4
{[%clk 01:04:27]} {[%emt 00:09:23]} Nxc3 {[%clk 01:15:00]} {[%emt 00:00:32]} 20.
Qxg7+ {[%clk 01:30:30]} {[%emt 00:04:05]} 0-1